Cogmind - Beta 9.3 @@@ ROGUE MODE // 2019.12.21 @ 17:40:55 // Winter2019/RPGLIKE Player: Cassie Rose Result: Destroyed by Y-45 Defender with Beam Rifle Performance ------------- Evolutions (1) 500 Regions Visited (2) 400 Robots Destroyed (28) 140 Value Destroyed (370) 370 Prototype IDs (0) 0 Alien Tech Used (0) 0 Bonus (0) 0 TOTAL SCORE: 1410 Bonus ------- None Cogmind --------- Core Integrity 0/600 Matter 300/300 Energy 273/275 System Corruption 0% Temperature Cool (9) Movement Rolling (80) Location -9/Materials Parts ------- > --- POWER (2) -------- Ion Engine Light Ion Engine > --- PROPULSION (2) --- Wheel Wheel > --- UTILITY (2) ------ Improved Terrain Scanner Terrain Scan Processor > --- WEAPON (3) ------- Flail Flail Flail > --- INVENTORY (0) ---- (None) Peak State ------------ > --- POWER ------------ Ion Engine Light Ion Engine > --- PROPULSION ------- Wheel Wheel > --- UTILITY ---------- Improved Terrain Scanner Terrain Scan Processor > --- WEAPON ----------- Flail Flail Flail > --- INVENTORY -------- (None) [Rating: 14] Favorites ----------- Power Ion Engine Engine Ion Engine Propulsion Wheel Wheel Wheel Utility Improved Terrain Scanner Device Improved Terrain Scanner Processor Seismic Analyzer Weapon Flail Energy Gun Medium Laser Ballistic Gun Assault Rifle Impact Weapon Flail Build | -11 -10 -9 ------- Run | Scr Mat Mat Slots Evolved 5 | 5 . . Power 1 | 1 . . Propulsion 1 | 1 . . Utility 1 | 1 . . Weapon 2 | 2 . . Parts Attached 16 | 9 5 2 Power 3 | 2 1 . Engine 3 | 2 1 . Core . | . . . Reactor . | . . . Propulsion 2 | 2 . . Treads . | . . . Leg . | . . . Wheel 2 | 2 . . Hover . | . . . Flight . | . . . Utility 4 | 2 1 1 Device 2 | 1 . 1 Storage . | . . . Processor 2 | 1 1 . Hackware . | . . . Protection . | . . . Artifact . | . . . Weapon 7 | 3 3 1 Energy Gun 2 | 2 . . Energy Cannon . | . . . Ballistic Gun 1 | 1 . . Ballistic Cannon . | . . . Launcher . | . . . Special Weapon . | . . . Impact Weapon 4 | . 3 1 Slashing Weapon . | . . . Piercing Weapon . | . . . Special Melee Weapon . | . . . Unidentified Prototypes . | . . . Parts Lost . | . . . Power . | . . . Propulsion . | . . . Utility . | . . . Weapon . | . . . Highest Loss Streak . | . . . Average Slot Usage (%) 99 | . 99 100 Engine 22 | . 22 22 Wheel 22 | . 22 22 Device 11 | . 11 11 Processor 11 | . 11 11 Energy Gun 2 | . 2 . Impact Weapon 29 | . 29 33 Naked Turns . | . . . Heaviest Build 15 | 15 15 15 Greatest Support 25 | 25 25 25 Greatest Overweight (x) . | . . . Average Overweight (x) . | . . . Largest Inventory Capacity . | . . . Average Capacity . | . . . Most Carried . | . . . Average Carried . | . . . Final Capacity . | . . . Final Carried . | . . . Class Distribution -------------------- 82% | Mutant 17% | Skirmisher Dominant Class ---------------- Mutant | -10/Materials Mutant | -9/Materials Resources | -11 -10 -9 ----------- Run | Scr Mat Mat Matter Collected 402 | 317 65 20 Remotely . | . . . Salvage Created 870 | 107 763 . Parts 34 | 5 26 3 Haulers Intercepted 2 | . 2 . Recyclers Shooed . | . . . Parts Field Recycled . | . . . Retrieved Matter . | . . . Parts Self-Destructed . | . . . Prevented . | . . . Kills | -11 -10 -9 ------- Run | Scr Mat Mat Combat Hostiles Destroyed 13 | . 10 3 Melee 8 | . 7 1 Classes Destroyed 9 | 2 7 . Worker 3 | . 3 . Builder 2 | . 2 . Tunneler 2 | 2 . . Hauler 2 | . 2 . Recycler 3 | 1 2 . Operator 1 | . 1 . Watcher 2 | . 2 . Swarmer 8 | . 5 3 Grunt 5 | . 5 . Best Kill Streak 3 | 2 3 3 Combat Bots Only 3 | . 3 3 Max Kills in Single Turn 1 | 1 1 1 Gunslinging . | . . . Exploded . | . . . Melee 1 | . 1 1 Uniques/NPCs Destroyed . | . . . Combat | -11 -10 -9 -------- Run | Scr Mat Mat Damage Taken 1139 | . 659 480 Core 934 | . 538 396 Absorbed by Shields . | . . . Redirected to Core 631 | . 372 259 Core Remaining (%) 69 | 100 38 . Volleys Fired 14 | 9 5 . Largest 3 | 3 3 . Hottest 110 | 110 110 . Shots Fired 42 | 27 15 . Gun 42 | 27 15 . Cannon . | . . . Launcher . | . . . Special . | . . . Kinetic 14 | 9 5 . Thermal 14 | 9 5 . Explosive . | . . . Electromagnetic 14 | 9 5 . Robot Hit Streak 4 | 4 4 . Robot Miss Streak 2 | 2 2 . Penetration Max . | . . . Secondary Targets . | . . . Shots Hit Robots 78 | 14 53 11 Core Hits 19 | 4 14 1 Critical Hits . | . . . Critical Kills . | . . . Critical Parts Destroyed . | . . . Melee Attacks 86 | . 71 15 Impact 86 | . 71 15 Slashing . | . . . Piercing . | . . . Sneak Attacks 9 | . 9 . Combat Hostiles . | . . . Follow-up Attacks 19 | . 17 2 Damage Inflicted 2008 | 148 1608 252 Guns 263 | 148 115 . Cannons . | . . . Explosions 22 | . 22 . Melee 1723 | . 1471 252 Ramming . | . . . Kinetic 53 | 43 10 . Thermal 108 | 38 70 . Explosive . | . . . Electromagnetic 124 | 67 57 . Impact 1723 | . 1471 252 Slashing . | . . . Piercing . | . . . Highest Corruption . | . . . Average Corruption . | . . . Corruption Purged . | . . . Overload Shots . | . . . Overflow Damage 355 | . 330 25 Projectiles . | . . . Explosions . | . . . Melee 355 | . 330 25 Knockbacks 6 | . 5 1 Impact 6 | . 5 1 Kinetic . | . . . Secondary . | . . . Self-Inflicted Damage . | . . . Shots . | . . . Rammed . | . . . Targets Rammed . | . . . Kicked . | . . . Crushed . | . . . Highest Temperature 246 | 246 96 . Average Temperature 98 | 130 43 . Received Heat Transfer 237 | . 183 54 Siege Activations . | . . . Robots Corrupted . | . . . Combat Hostiles . | . . . Parts Fried 16 | . 14 2 Impact Corruptions 21 | . 19 2 Robots Melted . | . . . Combat Hostiles . | . . . Parts Melted . | . . . Heat Transferred 309 | 111 198 . Parts Sabotaged . | . . . Parts Stolen . | . . . Parts Stripped . | . . . Power Chain Reactions 1 | . 1 . Missiles Intercepted . | . . . Alert | -11 -10 -9 ------- Run | Scr Mat Mat Peak Influence 209 | 15 209 167 Average Influence 96 | 6 104 110 Maximum Alert Level 1 | . 1 . Low Security (%) 96 | 100 94 100 Level 1 3 | . 5 . Level 2 . | . . . Level 3 . | . . . Level 4 . | . . . Level 5 . | . . . High Security . | . . . Max Security . | . . . Squads Dispatched 2 | . 2 . Investigation 2 | . 2 . Extermination . | . . . Reinforcement . | . . . Assault . | . . . Garrison . | . . . Intercept . | . . . Construction Impeded . | . . . Haulers Reinforced . | . . . Stealth | -11 -10 -9 --------- Run | Scr Mat Mat Distress Signals 1 | . 1 . Communications Jammed . | . . . Distress Signals . | . . . Times Spotted 22 | . 16 6 Peak Tracking Total 5 | . 4 5 Tactical Retreats . | . . . Traps | -11 -10 -9 ------- Run | Scr Mat Mat Traps Triggered 1 | . 1 . Indirectly . | . . . Trap Hack Attempts . | . . . Triggered . | . . . Disarmed . | . . . Reprogrammed . | . . . Reused . | . . . Traps Extracted . | . . . Installed . | . . . Triggered . | . . . Machines | -11 -10 -9 ---------- Run | Scr Mat Mat Machines Disabled 1 | . 1 . Max in Single Turn 1 | . 1 . Machines Sabotaged . | . . . Garrisons Compromised . | . . . Overloaded Fab Kills . | . . . Fab Network Shutdowns . | . . . Hacking | -11 -10 -9 --------- Run | Scr Mat Mat Machines Accessed 1 | . 1 . Terminals 1 | . 1 . Fabricators . | . . . Repair Stations . | . . . Recycling Units . | . . . Scanalyzers . | . . . Garrison Access . | . . . Total Hacks 2 | . 2 . Successful 1 | . 1 . Failed 1 | . 1 . Catastrophic . | . . . Database Lockouts . | . . . Manual . | . . . Terminals 2 | . 2 . Fabricators . | . . . Repair Stations . | . . . Recycling Units . | . . . Scanalyzers . | . . . Garrison Access . | . . . Terminal Hacks 1 | . 1 . Registered Components 1 | . 1 . Fabricator Hacks . | . . . Repair Station Hacks . | . . . Recycling Unit Hacks . | . . . Scanalyzer . | . . . Garrison Access Hacks . | . . . Unauthorized Hacks . | . . . Terminals . | . . . Fabricators . | . . . Repair Stations . | . . . Recycling Units . | . . . Scanalyzers . | . . . Garrison Access . | . . . Data Cores Recovered 1 | . 1 . Used 1 | . 1 . Hacking Detections 1 | . 1 . Full Trace Events . | . . . Feedback Events . | . . . Feedback Blocked . | . . . Robot Schematics Acquired . | . . . Robots Built . | . . . Matter . | . . . Time . | . . . Total Robot Build Rating . | . . . Part Schematics Acquired . | . . . Parts Built . | . . . Matter . | . . . Time . | . . . Total Part Build Rating . | . . . Parts Repaired . | . . . Time . | . . . Parts Recycled . | . . . Recycled Matter . | . . . Retrieved Matter . | . . . Retrieved Components . | . . . Parts Scanalyzed . | . . . Part Schematics Acquired . | . . . Parts Damaged . | . . . Bothacking | -11 -10 -9 ------------ Run | Scr Mat Mat Used RIF Installer . | . . . Robots Hacked . | . . . Non-combat . | . . . Combat . | . . . Robot Hacks Applied . | . . . Relay Couplers Released . | . . . Robots Rewired . | . . . Allies Hacked . | . . . Hacks Repelled . | . . . Allies | -11 -10 -9 -------- Run | Scr Mat Mat Total Allies . | . . . Largest Group . | . . . Highest-Rated Group . | . . . Highest-Rated Ally . | . . . Total Orders . | . . . Ally Attacks . | . . . Total Damage . | . . . Kills . | . . . Allies Corrupted . | . . . Allies Melted . | . . . Intel | -11 -10 -9 ------- Run | Scr Mat Mat Robot Analysis Total . | . . . Derelict Logs Recovered . | . . . Drone Launches . | . . . Drone Recoveries . | . . . Exploration | -11 -10 -9 ------------- Run | Scr Mat Mat Turns Passed 1003 | 89 767 147 Spaces Moved 942 | 59 751 132 Core 1 | 1 . . Treads . | . . . Legs . | . . . Wheels 941 | 58 751 132 Hover . | . . . Flight . | . . . Fastest Speed 50 | 50 80 80 Average Speed 79 | 79 80 80 Slowest Speed 80 | 80 80 80 Overloaded Moves . | . . . Propulsion Burnouts . | . . . Robots Hopped . | . . . Cave-ins Triggered . | . . . Exploration Rate (%) 39 | 4 99 14 Regions Visited 2 Branch Regions . Pre-discovered Areas . | . . . Known Exits Taken . | . . . Unknown Exits Taken 2 | 1 1 . Scrap Searched . | . . . Spaces Dug . | . . . Terrain Destroyed 2 | . 2 . Melee . | . . . Projectile . | . . . AOE 2 | . 2 . Actions | -11 -10 -9 --------- Run | Scr Mat Mat Total 1057 | 76 825 156 Wait 2 | . 2 . Move 940 | 58 750 132 Hop . | . . . Pick Up . | . . . Fast Attach 12 | 9 3 . Attach . | . . . Detach . | . . . Swap 4 | . 2 2 Drop 6 | . 4 2 Fire 14 | 9 5 . Melee 62 | . 50 12 Ram . | . . . Kick . | . . . Crush . | . . . Escape Stasis . | . . . Rewire . | . . . Trap . | . . . Miscellaneous 17 | . 9 8 Route ------- -11/Scrapyard -10/Materials (discovered 5 exits: [*Mat x3] / [*Min x2]) -9/Materials History --------- Turn | Location | Event 1 | -11/Scrapyard | Upgraded with Power slot (x1) 1 | -11/Scrapyard | Upgraded with Propulsion slot (x1) 1 | -11/Scrapyard | Upgraded with Utility slot (x1) 1 | -11/Scrapyard | Upgraded with Weapon slot (x2) 37 | -11/Scrapyard | Discovered new exit (range 12) 90 | -11/Scrapyard | Entered Materials 105 | -10/Materials | Discovered new exit (range 15) 338 | -10/Materials | Discovered new exit (range 12) 409 | -10/Materials | Discovered new exit (range 9) 477 | -10/Materials | Build established: Mutant 613 | -10/Materials | Discovered new exit (range 12) 706 | -10/Materials | Discovered new exit (range 7) 762 | -10/Materials | Core integrity fell below 50% 857 | -10/Materials | Entered another Materials area 858 | -9/Materials | Core integrity fell below 50% 859 | -9/Materials | Reached level 2 931 | -9/Materials | Core integrity fell below 20% 940 | -9/Materials | Reached level 3 1004 | -9/Materials | Destroyed by Y-45 Defender with Beam Rifle Last Messages --------------- 00939_ S-10 Pest system corrupted by crushing effect. 00939_ Flail follow-up attack on S-10 Pest. 00940_ S-10 Pest system terminally corrupted. 00940_ Reached level 3. 00940_ Flight Unit fried. 00943_ Destroyed Flight Unit. 00943_ S-10 Pest system corrupted by crushing effect. 00943_ S-10 Pest knocked back. 00944_ S-10 Pest system terminally corrupted. 00944_ Lgt. Ion Engine fried. 00951_ K-01 Serf collects debris. 00952_ Used Protomatter to restore core integrity (+42, depleted) 00955_ K-01 Serf collects debris. 00956_ S-10 Pest destroyed. 00958_ K-01 Serf collects debris. 00960_ Used Protomatter to restore core integrity (+48, depleted) 00962_ Used Protomatter to restore core integrity (+9, depleted) 00965_ K-01 Serf collects debris. 00991_ Flail follow-up attack on Y-45 Defender. 01001_ U-05 Engineer builds a Door. Map ----- +----------------------------------------------------+ | ?????????????????????????? #?######+##### # | | ????????????????????? ?? ???? | | ???????????????????? ??? ??? | | ??????????????????? ??? ? ? | | ????????????????????????#?##??## """ ######## | | ??????????????????#??? ?###?##?# """"" ### | | ?????????????????#???? ######## """"" ### """ | | ??????????????????## ? ?######## """"" ### """ | | ????????????????????? # T """ ### """ | | ??????????????????##? # + | | ???????????????? #?# ?# [ ### """ | | ???????????????? #?#?? # """ ### """ | | ?????????????? ?? ## # """ [ [ ### """ | | ??????????? ??????## ?? # """ ""= ### | | ?????????????? ???####### "Y % #######+ | | ??????????????? ????#?#?# "" | | ?????????? ???? ?####### | | ???????????????/#??#?#### | | ??????????? #??? ? ? #####+#############+########+ | | ?????????#?##?? ??"???# ^ ^ [##### # | | ?????????#??#? ??"???## // ##### """ # | | ?????????##?? ???"??## // # # """ # | | ????????##???? ??? ?## ##### """ # """ | | ????????#?????? ?"?"?## "" ##### # "R | | ????????##??? ? ???" ?# """ #??## """ # """ | | ????????????? ? ???? ##Y @ R" ##### """ # """ | | ????????##??#??? ?? # """ ##### """ # | | ?????????#??##??##??### #?### ###### | | ????????????#???##?#??########################???? | | ??????????##??##?#??#??#??###????#?###?##?##????## | | ?????????#????####??????###??#??####???????#?##??# | | ?????????###???#???##??????#????#?#???#??##????##? | | | | | | | | | | | | | | | | | | | | | | | | | | | | | | | | | | | | | +----------------------------------------------------+ Best States ------------- Heat Dissipation 25 Energy Generation 15 Energy Capacity 275 Matter Stores 300 Matter Capacity 300 Sight Range 16 Robot Scan Range 2 Terrain Scan Range 16 Terrain Scan Density 185 Evasion (%) 44 Item Schematics ----------------- None Robot Schematics ------------------ None Fabricated ------------ Nothing Alien Tech Used ----------------- None Achievements -------------- None Challenges ------------ None RPGLIKE | -11 -10 -9 --------- Run | Scr Mat Mat Levels Raised 2 | . . 2 XP Earned 6250 | 3000 1450 1800 XP Spent 3000 | 3000 . . Upgrades 8 | 8 . . Power Slot 1 | 1 . . Propulsion Slot 1 | 1 . . Utility Slot 1 | 1 . . Weapon Slot 2 | 2 . . Mass Support 1 | 1 . . Sensor Range 1 | 1 . . Terrain Scan Density 1 | 1 . . Protomatter Created 97 | . 56 41 Integrity Restored 330 | . 168 162 Core 330 | . 168 162 Protomatter Decayed . | . . . Game ------ Seed WaveChargeNanovents Manual? 0 Play Time 00:13:20 Cumulative 77.1 hours Start 2019.12.21 @ 17:29:08 End 2019.12.21 @ 17:40:55 Sessions 1 Manual Loads 0 Difficulty Rogue Special Mode Winter2019/RPGLIKE Game No. 128 Rogue 128 Adventurer 0 Explorer 0 Win Type - Total 0 Types 0/0/0/0/0/0/0 Lore% 22 Gallery% 28 Achievement% 27 Wizard Run 0 Options --------- ASCII 0 Keyboard 0 Movement Mouse Keybinds 0 Fullscreen 2 Font 18/SmallcapsGlow Map View 76x50 Tactical HUD 1 Map Filters NONE Filters LOW_CONTRAST(13,24,33)|BRIGHTNESS(120)|SATURATION(80) Steam 1 RUN: bf84f6de-9420-41d2-8ec5-4c16e48b51eb